bitfinex/quotes_SOLUSD_20250908
["timestamp","ask_amount","ask_price","bid_price","bid_amount"]
[1757368752236,14.29559401,215.06,215.02,4.65073016]
[1757368752542,3.4748252,215.05,215.03,35.7]
[1757368752720,3.4748252,215.04,215.03,35.7]
[1757368753123,3.4748252,215.04,215.03,40.35051388]
[1757368753525,3.4748252,215.05,215.03,40.35051388]
[1757368753726,3.4748252,215.04,215.03,40.35051388]
[1757368754226,3.4748252,215.05,215.03,40.35051388]
[1757368754443,3.4748252,215.04,215.03,40.35051388]
[1757368755125,3.47325442,215.04,215.03,40.35051388]
[1757368757344,3.47325442,215.04,215.02,4.65073016]
[1757368757549,3.47325442,215.04,215.03,35.7]
[1757368758741,3.47325442,215.04,215.03,40.35051388]
[1757368761829,134.5,215.07,215.03,40.35051388]
[1757368762025,3.4713188,215.06,215.04,0.23]
[1757368762323,134.5,215.07,215.03,40.58051388]
[1757368762535,134.5,215.07,215.04,13.95446194]
[1757368762730,0.06,215.11,215.05,0.23]
[1757368762921,0.06,215.11,215.06,35.7]
[1757368763121,0.06,215.11,215.07,0.23]
[1757368764044,0.06,215.11,215.07,4.87964895]
[1757368764545,0.06,215.11,215.07,6.7400708]
[1757368765546,0.06,215.11,215.07,4.87964895]
[1757368768546,0.76,215.08,215.07,35.68]
[1757368769448,0.76,215.08,215.03,4.65051388]
[1757368769639,26.7,215.07,215.04,30.62]
[1757368769837,0.7,215.06,215.04,30.62]
[1757368770035,0.7,215.05,215.04,30.62]
[1757368771555,0.7,215.05,215.03,4.65051388]
[1757368771761,0.7,215.05,215.04,35.68]
[1757368773250,0.7,215.06,215.04,35.68]
[1757368773454,0.7,215.05,215.04,35.68]
[1757368774559,0.7,215.05,215.03,4.65051388]
[1757368774747,0.7,215.05,215.04,35.68]
[1757368776663,0.7,215.05,215.01,4.65094646]
[1757368776959,0.7,215.05,215.02,35.68]
[1757368777664,0.7,215.06,215.03,4.65051388]
[1757368782251,0.06,215.08,215.03,4.65051388]
[1757368782458,0.65,215.07,215.03,4.65051388]
[1757368782660,0.65,215.06,215.04,35.68]
[1757368782843,0.65,215.05,215.04,35.68]
[1757368783575,4.64964895,215.07,215.04,35.68]
[1757368785165,4.64964895,215.07,215.04,35.71]
[1757368786960,134.56,215.08,215.04,35.71]
[1757368787883,134.56,215.08,215.04,40.36018752]
[1757368788466,134.56,215.08,215.05,4.88001855]
[1757368789965,134.56,215.08,215.05,4.65001855]
[1757368790763,135.21,215.08,215.05,4.65001855]
[1757368794673,134.56,215.08,215.05,4.65001855]
[1757368794863,0.65,215.07,215.05,4.65001855]
[1757368796768,135.21,215.08,215.05,4.65001855]
[1757368796968,0.65,215.07,215.05,4.65001855]
[1757368801161,134.56,215.08,215.05,16.27522199]
[1757368801362,135.21,215.08,215.05,16.27522199]
[1757368801762,0.65,215.07,215.05,16.27522199]
[1757368801964,134.56,215.08,215.05,16.27522199]
[1757368802481,135.21,215.08,215.05,16.27522199]
[1757368803056,134.56,215.08,215.05,16.27522199]
[1757368803260,0.65,215.07,215.05,16.27522199]
[1757368804579,134.56,215.08,215.05,16.27522199]
[1757368804789,134.56,215.08,215.05,16.50522199]
[1757368805491,134.56,215.08,215.06,0.23]
[1757368805677,134.56,215.08,215.07,35.66]
[1757368805890,134.56,215.08,215.07,35.89]
[1757368806663,0.06,215.08,215.07,40.53964895]
[1757368807668,0.06,215.08,215.07,30.87964895]
[1757368807991,0.06,215.08,215.07,66.53964895]
[1757368810290,0.06,215.08,215.07,30.87964895]
[1757368810481,0.06,215.08,215.07,66.53964895]
[1757368812115,0.06,215.08,215.07,30.87964895]
[1757368812273,0.06,215.08,215.07,66.53964895]
[1757368812473,0.06,215.08,215.07,30.87964895]
[1757368812701,0.06,215.08,215.07,66.53964895]
[1757368813322,0.06,215.11,215.07,78.16377132]
[1757368813475,0.06,215.11,215.1,26.0]
[1757368813676,0.06,215.13,215.1,61.66]
[1757368813894,13.59559401,215.23,215.1,61.66]
[1757368813895,13.59559401,215.23,215.11,0.23]
[1757368814205,0.68,215.2,215.15,26.0]
[1757368814407,13.59559401,215.23,215.15,26.0]
[1757368814408,0.68,215.19,215.16,35.66]
[1757368815293,0.68,215.19,215.17,4.64748803]
[1757368815494,0.68,215.21,215.18,35.66]
[1757368815908,0.68,215.23,215.18,35.66]
[1757368816076,0.68,215.22,215.18,35.66]
[1757368816278,0.68,215.21,215.18,35.66]
[1757368816476,0.06,215.24,215.18,35.66]
[1757368816799,0.68,215.23,215.18,35.66]
[1757368816994,0.68,215.22,215.18,35.66]
[1757368817299,0.68,215.21,215.18,35.66]
[1757368817602,0.68,215.21,215.19,4.64705608]
[1757368818483,0.68,215.21,215.2,35.66]
[1757368819798,0.68,215.21,215.2,40.30684014]
[1757368821005,0.68,215.21,215.17,11.61872008]
[1757368821180,0.68,215.21,215.18,35.64]
[1757368821575,0.06,215.24,215.21,26.0]
[1757368821792,0.68,215.23,215.22,35.64]
[1757368823804,0.68,215.23,215.22,40.28640832]
[1757368826317,0.68,215.23,215.22,35.64]
[1757368828405,0.68,215.23,215.17,26.0]
[1757368828720,0.68,215.22,215.18,35.64]
[1757368828898,0.68,215.21,215.18,35.64]
[1757368829098,0.68,215.2,215.18,35.64]
[1757368829297,0.68,215.19,215.18,35.64]
[1757368830098,0.68,215.19,215.12,4.64842846]
[1757368830099,5.32710193,215.19,215.12,4.64842846]
[1757368830298,5.32710193,215.19,215.14,35.66]
[1757368830504,0.68,215.18,215.14,35.66]
[1757368830737,0.68,215.17,215.14,35.66]
[1757368831024,0.68,215.16,215.14,35.66]
[1757368831192,4.64710193,215.19,215.14,35.66]
[1757368831520,4.64748803,215.17,215.14,35.66]
[1757368831816,0.68,215.16,215.14,35.66]
[1757368832117,0.68,215.15,215.14,35.66]
[1757368835532,13.59559401,215.19,215.14,40.30803832]
[1757368835533,135.18,215.19,215.14,40.30803832]
[1757368835720,134.5,215.19,215.15,0.23]
[1757368837334,134.5,215.19,215.16,4.64770403]
[1757368837510,134.5,215.19,215.17,35.72]
[1757368837706,0.06,215.24,215.2,26.0]
[1757368837919,0.06,215.24,215.21,35.72]
[1757368838114,0.06,215.24,215.21,35.95]
[1757368838310,0.06,215.22,215.21,35.72]
[1757368838930,0.06,215.22,215.21,42.2253171]
[1757368839142,0.06,215.22,215.21,42.4553171]
[1757368839926,0.06,215.22,215.21,66.46662422]
[1757368843510,0.06,215.22,215.21,30.64662422]
[1757368843712,0.06,215.22,215.21,66.46662422]
[1757368844436,0.06,215.22,215.21,61.82]
[1757368844612,0.06,215.22,215.21,66.46662422]
[1757368848039,0.72,215.22,215.21,30.64662422]
[1757368848228,0.72,215.22,215.21,66.44662422]
[1757368848943,0.72,215.22,215.21,35.8]
[1757368849839,0.72,215.22,215.17,4.64574793]
[1757368850145,0.66,215.21,215.18,35.8]
[1757368850346,0.66,215.2,215.19,35.8]
[1757368850939,0.06,215.22,215.19,35.8]
[1757368851143,0.66,215.2,215.19,35.8]
[1757368854566,0.66,215.2,215.19,35.78]
[1757368863851,0.72,215.22,215.19,35.78]
[1757368864052,0.72,215.22,215.19,40.42700975]
[1757368864263,0.06,215.22,215.19,40.42700975]
[1757368864642,0.06,215.22,215.21,26.0]
[1757368864859,0.06,215.22,215.21,61.76]
[1757368865060,0.06,215.22,215.21,61.99]
[1757368865455,0.06,215.22,215.21,63.84869288]
[1757368865647,0.06,215.22,215.21,67.50696497]
[1757368866248,0.06,215.22,215.21,68.4953171]
[1757368871250,0.06,215.22,215.21,68.2653171]
[1757368876761,0.06,215.22,215.21,68.2053171]
[1757368877777,17.615416,215.22,215.21,68.2053171]
[1757368882678,17.615416,215.22,215.21,32.5053171]
[1757368882872,17.615416,215.22,215.21,68.1853171]
[1757368883078,17.615416,215.22,215.21,68.1653171]
[1757368884789,7.71442571,215.22,215.21,68.1653171]
[1757368885663,7.71442571,215.22,215.21,66.30662422]
[1757368887687,7.77442571,215.22,215.21,66.30662422]
[1757368888419,7.77442571,215.22,215.21,30.64662422]
[1757368888691,7.77442571,215.22,215.21,66.28662422]
[1757368890567,0.06,215.25,215.21,70.66482524]
[1757368890768,1e-08,215.29,215.27,20.0]
[1757368891075,1e-08,215.29,215.28,37.9574136]
[1757368891282,1e-08,215.29,215.28,43.12848641]
[1757368891495,0.0599999,215.3,215.28,44.98622972]
[1757368891792,0.0599999,215.3,215.28,39.25774331]
[1757368892199,0.0599999,215.3,215.29,26.0]
[1757368892384,0.0599999,215.3,215.29,28.415131]
[1757368892588,0.0599999,215.3,215.29,33.06002858]
[1757368893099,0.0599999,215.3,215.29,28.4181828]
[1757368893303,0.7599999,215.3,215.29,27.8607951]
[1757368893480,0.7599999,215.3,215.29,58.97815422]
[1757368893675,0.7599999,215.3,215.29,37.62]
[1757368895510,0.0599999,215.3,215.29,63.62]
[1757368895688,0.0599999,215.3,215.29,64.1773877]
[1757368896389,0.0599999,215.3,215.29,63.62]
[1757368896994,0.0599999,215.3,215.29,37.62]
[1757368897807,0.7599999,215.3,215.29,37.62]
[1757368899585,0.0599999,215.3,215.29,37.62]
[1757368900478,0.7799999,215.3,215.29,37.62]
[1757368900888,0.0599999,215.3,215.29,37.62]
[1757368901704,0.7799999,215.3,215.29,37.62]
[1757368903379,0.0599999,215.3,215.29,37.62]
[1757368905102,0.0599999,215.3,215.29,37.65]
[1757368905604,0.7799999,215.3,215.29,63.65]
[1757368906503,0.0599999,215.3,215.29,63.65]
[1757368907483,0.7799999,215.3,215.29,63.65]
[1757368909780,14.37559391,215.3,215.29,0.03]
[1757368917907,13.59559401,215.29,215.26,0.03]
[1757368918085,16.38228379,215.29,215.26,0.03]
[1757368918290,0.72,215.28,215.26,0.03]
[1757368918603,4.98786874,215.28,215.26,0.03]
[1757368918986,0.72,215.28,215.26,0.03]
[1757368919897,2.78668978,215.27,215.26,0.03]
[1757368920089,20.65015253,215.27,215.26,0.03]
[1757368920412,21.37015253,215.27,215.26,0.03]
[1757368921106,17.10228379,215.27,215.26,0.03]
[1757368921312,21.37015253,215.27,215.26,0.03]
[1757368921811,17.10228379,215.27,215.26,0.03]
[1757368921986,21.37015253,215.27,215.26,0.03]
[1757368922186,26.01548165,215.27,215.26,0.03]
[1757368930596,21.74761291,215.27,215.26,0.03]
[1757368930796,26.01548165,215.27,215.26,0.03]
[1757368933500,42.38228379,215.25,215.24,0.03]
[1757368933699,42.38228379,215.25,215.21,0.03]
[1757368933700,2.78668978,215.22,215.21,0.03]
[1757368933908,7.05455852,215.22,215.21,0.03]
[1757368934195,21.36015253,215.22,215.21,0.03]
[1757368934933,21.36015253,215.22,215.13,0.03]
[1757368934934,13.59559401,215.14,215.13,0.03]
[1757368935224,60.05159884,215.14,215.13,0.03]
[1757368935422,2.78668978,215.11,215.08,0.03]
[1757368935624,2.78668978,215.11,215.04,0.03]
[1757368935625,2.78668978,215.09,215.04,0.03]
[1757368935798,20.65015253,215.05,215.04,0.03]
[1757368936228,58.94015253,215.05,215.04,0.03]
[1757368936430,21.36015253,215.05,215.04,0.03]
[1757368936818,1.8608546,215.11,215.04,0.47]
[1757368937122,2.34668978,215.18,215.08,26.0]
[1757368937299,2.34668978,215.18,215.09,27.3892166]
[1757368937498,2.34668978,215.16,215.09,27.3892166]
[1757368937923,13.59559401,215.17,215.09,27.3892166]
[1757368938123,0.71,215.2,215.12,26.0]
[1757368938124,2.34668978,215.2,215.12,26.0]
[1757368938436,2.34668978,215.2,215.13,26.0]
[1757368939212,15.94228379,215.22,215.13,30.64817577]
[1757368940022,2.34668978,215.24,215.13,30.64817577]
[1757368940329,2.34668978,215.24,215.14,0.55777633]
[1757368940499,13.59559401,215.25,215.14,0.55777633]
[1757368941321,13.59559401,215.25,215.17,26.0]
[1757368941513,13.59559401,215.25,215.18,38.0]
[1757368941831,20.21015253,215.2,215.12,38.0]
[1757368942032,20.21015253,215.18,215.12,38.0]
[1757368942212,6.61455852,215.13,215.12,38.0]
[1757368942413,2.34668978,215.1,215.09,0.03]
[1757368943005,3.05668978,215.1,215.09,0.03]
[1757368946828,7.70569024,215.1,215.09,0.03]
[1757368947029,25.56915299,215.1,215.09,0.03]
[1757368948241,2.34668978,215.15,215.09,0.03]
[1757368951254,3.05668978,215.15,215.09,0.03]
[1757368951917,13.59559401,215.14,215.09,0.03]
[1757368952120,2.34668978,215.11,215.09,0.03]
[1757368952528,0.71,215.1,215.09,0.03]
[1757368952726,14.30559401,215.1,215.09,0.03]
[1757368952971,2.34668978,215.07,215.06,38.09]
[1757368953126,3.05668978,215.07,215.06,38.09]
[1757368956542,2.34668978,215.07,215.06,38.09]
[1757368958245,2.34668978,215.09,215.06,38.09]
[1757368958430,16.65228379,215.11,215.06,38.09]
[1757368958636,15.94228379,215.11,215.06,38.09]
[1757368958836,3.05668978,215.11,215.06,38.09]
[1757368959140,13.59559401,215.09,215.06,38.09]
[1757368959441,14.30559401,215.09,215.06,38.09]
[1757368959864,13.59559401,215.09,215.06,38.09]
[1757368960153,0.71,215.08,215.06,38.09]
[1757368961162,0.71,215.07,215.06,38.09]
[1757368961546,14.30559401,215.07,215.06,0.03]
[1757368963967,18.95524296,215.07,215.06,0.03]
[1757368964842,21.6936157,215.07,215.06,0.03]
[1757368965370,148.09559401,215.06,215.04,0.03]
[1757368965543,15.94228379,215.02,215.01,0.03]
[1757368965870,18.68065653,215.02,215.01,0.03]
[1757368966055,19.39065653,215.02,215.01,0.03]
[1757368966842,19.39065653,215.02,214.97,0.03]
[1757368966843,15.94228379,214.98,214.97,0.03]
[1757368967042,15.94228379,214.98,214.82,38.66]
[1757368967043,13.59559401,214.95,214.9,0.24]
[1757368967350,134.5,215.01,214.9,0.24]
[1757368967351,0.71,214.97,214.9,0.24]
[1757368967554,2.34668978,215.0,214.94,0.27]
[1757368967855,2.34668978,214.95,214.94,0.03]
[1757368968249,5.79506252,214.95,214.94,0.03]
[1757368968760,13.59559401,214.98,214.94,0.27]
[1757368968960,14.30559401,214.95,214.94,0.03]
[1757368969268,17.04396675,214.95,214.94,0.03]
[1757368969452,2.34668978,214.96,214.94,0.03]
[1757368969657,13.59559401,215.0,214.94,0.27]
[1757368969848,2.34668978,214.99,214.94,0.27]
[1757368970168,0.71,214.98,214.94,0.03]
[1757368970365,2.34668978,215.01,214.95,0.24]
[1757368970563,2.34668978,215.03,214.95,0.24]
[1757368970749,14.30559401,215.05,214.96,39.64]
[1757368970750,2.34668978,215.01,214.96,39.64]
[1757368970943,2.34668978,215.01,214.97,0.24]
[1757368971266,2.34668978,215.01,214.96,39.64]
[1757368971464,15.94228379,215.07,214.99,26.0]
[1757368971766,2.34668978,215.03,214.94,0.27]
[1757368971949,2.34668978,215.03,214.95,39.8]
[1757368972150,2.34668978,215.08,214.98,26.0]
[1757368972458,2.34668978,215.02,214.95,40.02]
[1757368972767,2.34668978,214.99,214.95,40.02]
[1757368972956,0.71,214.98,214.95,40.02]
[1757368973267,16.65228379,214.97,214.95,40.02]
[1757368973478,2.34668978,215.01,214.95,40.02]
[1757368973651,13.59559401,215.0,214.95,40.02]
[1757368973857,14.30559401,215.0,214.95,40.02]
[1757368974252,2.34668978,215.01,214.95,40.02]
[1757368975164,2.40668978,215.01,214.95,40.02]
[1757368975381,2.34668978,214.97,214.94,0.03]
[1757368975550,2.34668978,214.99,214.94,0.03]
[1757368975750,2.40668978,215.01,214.95,0.24]
[1757368976668,0.06,215.01,214.96,26.0]
[1757368976876,0.06,215.01,214.97,0.24]
[1757368977073,0.06,215.01,214.96,26.0]
[1757368977365,0.06,215.01,214.94,4.92234733]
[1757368977366,0.71,215.0,214.94,0.03]
[1757368977677,0.06,215.01,214.96,26.0]
[1757368978177,0.77,215.01,214.97,40.02]
[1757368978378,2.34668978,215.0,214.97,40.02]
[1757368979156,0.71,214.99,214.97,40.02]
[1757368979677,3.05668978,214.98,214.97,40.02]
[1757368979874,2.34668978,214.96,214.94,0.03]
[1757368980076,2.34668978,214.96,214.95,40.02]
[1757368980372,3.05668978,214.96,214.95,40.02]
[1757368980678,2.34668978,214.96,214.95,40.02]
[1757368981170,2.34668978,214.99,214.95,40.26]
[1757368981362,14.30559401,214.98,214.95,40.02]
[1757368981567,3.05668978,214.97,214.95,40.02]
[1757368981772,2.34668978,214.97,214.95,40.02]
[1757368982165,0.71,215.0,214.95,40.02]
[1757368982166,2.34668978,214.99,214.95,40.02]
[1757368982357,2.34668978,214.97,214.95,40.02]
[1757368982868,2.40668978,215.01,214.96,0.24]
[1757368983068,2.40668978,215.01,214.95,40.02]
[1757368983069,0.06,215.01,214.95,40.02]
[1757368983376,2.40668978,215.01,214.96,0.24]
[1757368983566,0.06,215.01,214.98,26.0]
[1757368983876,0.06,215.01,214.99,0.79816549]
[1757368984369,0.06,215.01,215.0,40.16]
[1757368984759,0.06,215.04,215.03,26.0]
[1757368984964,0.06,215.04,215.03,26.55806166]
[1757368985172,0.06,215.04,215.03,26.79806166]
[1757368985678,0.06,215.04,215.03,31.44857554]
[1757368986382,0.06,215.04,215.03,39.86]
[1757368986674,0.06,215.04,215.03,40.65806166]
[1757368987781,0.06,215.04,215.03,66.1]
[1757368989083,0.71,215.11,215.05,26.0]
[1757368990067,0.06,215.14,215.06,26.0]
[1757368990298,0.73,215.14,215.07,0.55795787]
[1757368990464,0.73,215.14,215.07,39.78]
[1757368990657,2.34668978,215.13,215.07,39.78]
[1757368990858,2.34668978,215.13,215.04,26.24]
[1757368991055,0.67,215.12,215.05,39.82]
[1757368991282,3.01668978,215.11,215.05,39.82]
[1757368991481,3.01668978,215.11,215.03,30.65044366]
[1757368991682,2.34668978,215.13,215.06,39.78]
[1757368991896,0.73,215.14,215.06,39.78]
[1757368992266,0.73,215.14,215.09,26.0]
[1757368992470,0.73,215.14,215.1,39.76]
[1757368992670,0.67,215.13,215.1,39.76]
[1757368993976,0.67,215.12,215.1,39.76]
[1757368994172,0.67,215.11,215.01,26.24]
[1757368994473,2.34668978,215.12,215.05,26.0]
[1757368994671,0.67,215.1,215.06,39.72]
[1757368994977,0.67,215.09,215.06,39.72]
[1757368995497,0.06,215.11,215.06,39.72]
[1757368995697,0.67,215.1,215.06,39.72]
[1757368996900,0.06,215.11,214.99,0.55816549]
[1757368996901,0.67,215.09,214.99,0.24]
[1757368997096,2.34668978,215.08,215.0,65.66]
[1757368997596,2.34668978,215.08,215.0,65.9]
[1757368998006,0.67,215.09,215.0,65.9]
[1757368998304,2.34668978,215.08,215.0,65.9]
[1757368999184,0.67,215.09,215.0,65.9]
[1757368999504,0.06,215.11,214.97,0.24]
[1757368999505,13.59559401,215.07,214.97,0.24]
[1757368999810,0.67,215.06,215.01,26.0]
[1757368999977,0.67,215.05,215.02,39.52]
[1757369000177,0.67,215.04,215.02,39.52]
[1757369000379,3.01668978,215.04,215.02,39.52]
[1757369001702,2.34668978,215.07,215.02,39.52]
[1757369001912,0.06,215.14,215.05,26.0]
[1757369001913,3.07668978,215.11,215.05,26.0]
[1757369002213,3.07668978,215.11,215.06,39.46]
[1757369002421,0.67,215.1,215.06,39.46]
[1757369002910,0.67,215.09,215.06,39.46]
[1757369003103,0.67,215.08,215.07,39.46]
[1757369004507,3.01668978,215.08,215.07,39.44]
[1757369005190,7.66615047,215.08,215.07,39.44]
[1757369005710,2.34668978,215.06,214.98,0.24]
[1757369006209,2.34668978,215.06,214.99,39.38]
[1757369006532,6.9966882,215.06,214.99,39.38]
[1757369006815,0.67,215.05,215.0,39.36]
[1757369007319,2.34668978,215.06,215.01,0.24]
[1757369007530,2.34668978,215.06,215.0,39.36]
[1757369007693,3.01668978,215.06,215.0,39.36]
[1757369008017,3.01668978,215.06,215.01,39.34]
[1757369008686,6.99672451,215.06,214.95,26.03]
[1757369008889,2.34668978,215.02,214.95,0.03]
[1757369009205,2.34668978,215.02,214.96,65.28]
[1757369009505,3.01668978,215.02,214.96,65.28]
[1757369010897,7.6675395,215.02,214.96,65.28]
[1757369011508,7.6675395,215.02,214.96,39.28]
[1757369011712,2.34668978,214.98,214.96,39.28]
[1757369012506,2.34668978,214.98,214.97,0.03]
[1757369012908,3.01668978,214.98,214.97,0.03]
[1757369013104,2.34668978,215.03,214.97,39.45]
[1757369013309,2.34668978,215.03,214.98,0.24]
[1757369013820,15.94228379,215.05,214.99,0.24]
[1757369013986,20.59238234,215.05,214.97,39.45]
[1757369014699,2.34668978,215.05,214.97,39.21]
[1757369014899,2.34668978,215.05,215.0,26.0]
[1757369015105,2.34668978,215.05,215.01,39.14]
[1757369015927,2.34668978,215.07,215.02,0.24]
[1757369016221,2.34668978,215.07,215.01,39.14]
[1757369016222,2.34668978,215.05,215.01,39.14]
[1757369016528,0.06,215.08,215.04,26.0]
[1757369016716,0.06,215.08,215.05,39.1]
[1757369017828,0.06,215.08,215.04,26.0]
[1757369017995,0.67,215.07,215.05,39.08]
[1757369018617,2.34668978,215.06,215.05,39.08]
[1757369019230,2.34668978,215.06,214.97,0.03]
[1757369019402,2.34668978,215.04,214.98,39.06]
[1757369021034,2.34668978,215.04,214.98,39.3]
[1757369021726,2.34668978,215.04,214.98,0.24]
[1757369021907,0.69,215.03,214.99,39.02]
[1757369022307,0.69,215.02,214.97,0.03]
[1757369022505,2.34668978,215.0,214.98,38.96]
[1757369028708,0.69,214.99,214.98,38.96]
[1757369028926,2.34668978,215.0,214.98,38.96]
[1757369033338,0.69,214.99,214.98,38.96]
[1757369033718,2.34668978,215.0,214.98,38.96]
[1757369033920,3.03668978,215.0,214.98,38.96]
[1757369034132,2.34668978,215.0,214.98,38.96]
[1757369036536,3.03668978,215.0,214.98,38.96]
[1757369038121,2.34668978,214.98,214.97,0.03]
[1757369038447,6.62708579,214.98,214.97,0.03]
[1757369038624,20.9126798,214.98,214.97,0.03]
[1757369040254,3.03668978,214.98,214.97,0.03]
[1757369040442,7.31708579,214.98,214.97,0.03]
[1757369040621,11.96868128,214.98,214.97,0.03]
[1757369040822,7.31708579,214.98,214.97,0.03]
[1757369041249,2.34668978,214.98,214.97,0.03]
[1757369041853,7.31708579,214.98,214.97,0.03]
[1757369042450,11.96868128,214.98,214.97,0.03]
[1757369044955,25.56427529,214.98,214.97,0.03]
[1757369051565,174.09559401,214.97,214.96,1e-08]
[1757369051747,178.37599002,214.97,214.96,1e-08]
[1757369051945,179.04599002,214.97,214.96,1e-08]
[1757369052343,183.63549762,214.97,214.96,1e-08]
[1757369053586,183.6978019,214.97,214.96,1e-08]
[1757369053752,157.6978019,214.97,214.96,1e-08]
[1757369054048,161.97819791,214.97,214.96,1e-08]
[1757369054357,41.94228379,214.95,214.94,1e-08]
[1757369054564,88.82307581,214.95,214.84,0.2]
[1757369054743,43.87599002,214.93,214.84,0.2]
[1757369055455,51.54535741,214.93,214.84,0.2]
[1757369058461,25.54535741,214.93,214.84,0.2]
[1757369058936,25.54535741,214.93,214.84,0.44]
[1757369059961,25.54535741,214.93,214.84,0.2]
[1757369060174,46.2226798,214.91,214.84,0.2]
[1757369060645,46.8926798,214.91,214.84,0.2]
[1757369061767,39.59559401,214.9,214.84,0.2]
[1757369061945,48.52931714,214.9,214.84,0.2]
[1757369062153,15.94228379,214.85,214.84,0.2]
[1757369062474,2.34668978,214.76,214.74,0.24]
[1757369062653,4.28039601,214.75,214.74,0.24]
[1757369062964,2.34668978,214.76,214.74,0.24]
[1757369063146,2.34668978,214.82,214.74,0.24]
[1757369063462,4.28039601,214.83,214.74,0.24]
[1757369063463,2.34668978,214.8,214.74,0.24]
[1757369065562,6.62708579,214.8,214.74,0.24]
[1757369065768,2.34668978,214.8,214.74,0.24]
[1757369065967,6.62708579,214.8,214.74,0.24]
[1757369066167,6.62708579,214.78,214.75,38.08]
[1757369066370,2.34668978,214.8,214.76,0.24]
[1757369066662,6.62708579,214.82,214.76,0.24]
[1757369066865,4.28039601,214.8,214.77,0.24]
[1757369067072,2.34668978,214.79,214.77,0.24]
[1757369069957,2.34668978,214.79,214.75,38.32]
[1757369070278,2.34668978,214.79,214.76,0.24]
[1757369071381,2.34668978,214.79,214.77,0.24]
[1757369071567,2.34668978,214.79,214.75,38.32]
[1757369071763,2.34668978,214.79,214.76,0.24]
[1757369073482,2.34668978,214.81,214.76,0.24]
[1757369073675,2.34668978,214.79,214.76,0.24]
[1757369074368,2.34668978,214.79,214.75,38.08]
[1757369074570,2.34668978,214.79,214.75,38.32]
[1757369074768,2.34668978,214.79,214.75,0.24]
[1757369074962,3.01668978,214.79,214.76,37.9]
[1757369075277,2.34668978,214.79,214.76,37.9]
[1757369075484,2.34668978,214.79,214.74,0.03]
[1757369075653,2.34668978,214.76,214.75,37.88]
[1757369076278,3.01668978,214.78,214.75,37.88]
[1757369076471,2.34668978,214.76,214.75,37.88]
[1757369078361,2.34668978,214.76,214.74,0.03]
[1757369078362,21.2686779,214.76,214.74,0.03]
[1757369078576,25.54907391,214.76,214.75,37.84]
[1757369078967,13.59559401,214.75,214.74,0.03]
[1757369079164,17.87599002,214.75,214.74,0.03]
[1757369079364,14.26559401,214.75,214.74,0.03]
[1757369079586,2.34668978,214.76,214.74,0.03]
[1757369079964,3.01668978,214.76,214.74,0.03]
[1757369080782,2.34668978,214.76,214.74,0.03]
[1757369082587,2.34668978,214.75,214.74,0.03]
[1757369083482,3.01668978,214.75,214.74,0.03]
[1757369083665,3.01668978,214.75,214.74,37.79]
[1757369084578,2.34668978,214.75,214.74,37.79]
[1757369087284,2.34668978,214.75,214.74,38.03]
[1757369087577,2.34668978,214.77,214.74,38.03]
[1757369087781,2.34668978,214.75,214.74,37.79]
[1757369088879,2.34668978,214.75,214.74,37.71]